bitfinex/quotes_ETHUSD_20250715
["timestamp","ask_amount","ask_price","bid_price","bid_amount"]
[1752601702626,4.50063975,3096.8,3096.0,0.24727245]
[1752601702950,4.50063975,3096.8,3095.5,3.32225449]
[1752601702951,0.8087,3096.8,3096.4,0.1608]
[1752601703153,3.22944317,3096.6,3095.9,3.2300777]
[1752601703453,6.3868,3096.7,3096.1,3.22984002]
[1752601703617,6.3868,3096.7,3096.0,0.58229974]
[1752601703618,6.3868,3096.7,3096.2,0.03229765]
[1752601703955,5.931,3096.6,3096.3,3.22960204]
[1752601704246,6.3938,3096.6,3096.4,0.03229556]
[1752601704555,6.3938,3096.6,3095.8,0.03230182]
[1752601704850,6.3938,3096.6,3094.8,11.81021196]
[1752601704851,0.7599,3096.4,3095.5,0.24452595]
[1752601705035,9.62247756,3096.3,3095.7,3.23018718]
[1752601705238,6.6899,3096.4,3095.8,0.03230182]
[1752601705436,0.7599,3096.4,3095.9,3.78007849]
[1752601705768,0.4628,3096.7,3096.2,0.55]
[1752601705953,0.8148,3097.4,3097.1,3.2287579]
[1752601706116,0.4628,3097.3,3096.7,0.03229244]
[1752601706316,0.93757423,3097.7,3097.2,3.22863362]
[1752601706520,0.93757423,3097.7,3096.6,0.55]
[1752601706521,0.93757423,3097.7,3097.3,3.26089135]
[1752601706771,6.86457423,3097.7,3097.3,0.03228618]
[1752601706928,6.86457423,3097.7,3097.3,3.26087599]
[1752601707119,6.86457423,3097.7,3097.3,0.03228618]
[1752601707471,6.86457423,3097.7,3097.4,0.03228514]
[1752601707760,0.93757423,3097.7,3097.4,0.03228514]
[1752601708128,6.3848,3097.6,3097.1,2.18907138]
[1752601708331,0.4628,3097.5,3097.1,0.23807138]
[1752601708555,0.4628,3097.4,3096.4,0.5391]
[1752601708855,3.22880946,3097.2,3096.0,0.5391]
[1752601709157,0.4628,3097.4,3096.8,3.22908894]
[1752601709352,0.4628,3097.4,3096.2,3.22970269]
[1752601709353,0.4628,3097.4,3096.9,0.03229035]
[1752601709552,6.3748,3097.3,3096.9,0.03229035]
[1752601709954,0.4628,3097.2,3096.3,0.03229661]
[1752601710162,5.907,3097.1,3096.7,3.22916979]
[1752601710328,5.907,3097.1,3096.8,0.03229139]
[1752601710528,5.907,3097.0,3096.8,0.03229139]
[1752601710856,5.906,3097.2,3096.9,3.22897381]
[1752601711025,5.904,3097.2,3097.0,0.03228931]
[1752601711222,1.2829,3097.5,3096.9,3.22903174]
[1752601711459,5.903,3097.4,3096.8,3.22911212]
[1752601711661,1.2829,3097.5,3096.9,0.03229035]
[1752601711855,5.901,3097.3,3096.9,0.03229035]
[1752601712057,5.901,3097.2,3096.9,0.03229035]
[1752601712238,9.59254803,3097.2,3096.8,0.03229139]
[1752601712553,0.4628,3097.2,3096.3,0.03229661]
[1752601712854,5.894,3097.1,3096.7,3.22920259]
[1752601713027,0.1608,3097.4,3096.9,0.1608]
[1752601713223,5.889,3097.3,3097.0,0.03228931]
[1752601713450,5.889,3097.3,3097.2,0.1608]
[1752601714057,5.884,3097.3,3097.2,0.1608]
[1752601714570,6.3468,3097.3,3097.2,0.1608]
[1752601714874,6.3418,3097.3,3097.2,0.1608]
[1752601715028,0.4628,3097.3,3097.2,0.1608]
[1752601715363,5.874,3097.3,3097.2,0.1608]
[1752601715726,0.8201,3097.5,3097.2,0.1608]
[1752601715928,6.3298,3097.4,3097.2,0.1608]
[1752601716222,3.22872271,3097.2,3097.0,0.03228931]
[1752601716422,3.22889266,3097.1,3096.9,0.1608]
[1752601716726,0.4628,3097.0,3096.7,0.1608]
[1752601716934,5.862,3096.9,3096.8,0.03229139]
[1752601717147,5.862,3096.9,3096.7,0.1608]
[1752601717148,5.861,3096.9,3096.7,1.97029244]
[1752601717458,5.861,3096.9,3096.8,0.19309139]
[1752601717762,5.861,3096.9,3096.8,0.1608]
[1752601718270,6.3238,3096.9,3096.7,0.1608]
[1752601718466,5.861,3096.9,3096.7,0.1608]
[1752601718679,0.4628,3096.8,3096.7,0.1608]
[1752601719369,6.3118,3096.8,3096.7,0.1608]
[1752601719691,7.1381,3096.8,3096.4,0.19309556]
[1752601719996,5.843,3096.7,3096.5,3.22937881]
[1752601720158,5.843,3096.7,3096.2,3.22974481]
[1752601720159,6.3058,3096.6,3096.2,3.22974481]
[1752601720673,0.4628,3096.5,3096.3,0.03229661]
[1752601720845,0.4628,3097.0,3096.3,1.97029661]
[1752601721172,5.84,3096.9,3096.8,3.18930001]
[1752601721375,5.84,3096.9,3096.7,0.03229244]
[1752601721376,5.842,3096.9,3096.7,0.03229244]
[1752601721575,5.842,3096.9,3096.8,3.22913026]
[1752601721777,5.841,3096.9,3096.8,3.26143114]
[1752601721945,5.841,3096.9,3096.8,0.03229139]
[1752601722146,5.841,3096.9,3096.8,3.26143114]
[1752601722781,5.841,3096.9,3096.8,3.22913975]
[1752601722982,0.4628,3097.4,3096.7,0.03229244]
[1752601723153,5.834,3097.3,3097.2,3.22866058]
[1752601723343,0.8171,3097.5,3097.0,3.22888607]
[1752601723658,0.8171,3097.5,3096.5,2.488]
[1752601723659,5.833,3097.3,3096.5,2.488]
[1752601723848,3.22878449,3097.2,3096.6,0.03229348]
[1752601724048,3.22878449,3097.2,3096.6,3.22928999]
[1752601724267,9.06165619,3097.3,3096.6,3.22928999]
[1752601724466,0.4628,3097.2,3096.6,0.03229348]
[1752601724786,0.4628,3097.2,3096.7,3.2291607]
[1752601724968,5.824,3097.2,3097.0,3.22892039]
[1752601725166,6.2724,3097.2,3096.5,0.551]
[1752601725468,6.2724,3097.2,3096.9,3.22902287]
[1752601725672,1.2655,3097.1,3096.5,0.001]
[1752601725879,4.49438312,3097.1,3096.5,0.03329452]
[1752601726179,3.22893413,3097.0,3096.5,3.23040321]
[1752601726374,3.22904172,3096.9,3096.6,0.03229348]
[1752601726546,5.83,3096.8,3096.5,0.001]
[1752601726747,5.826,3096.9,3096.8,3.22907088]
[1752601726947,0.002,3097.3,3096.9,3.22898043]
[1752601727259,5.826,3097.2,3097.0,0.03228931]
[1752601727665,0.002,3097.3,3097.0,0.03228931]
[1752601727981,5.822,3097.2,3097.0,3.2611656]
[1752601728181,5.822,3097.2,3097.0,0.03228931]
[1752601728849,9.49913862,3097.2,3096.6,3.22929009]
[1752601729047,0.4484,3097.1,3096.5,0.001]
[1752601729289,0.002,3097.3,3096.7,3.22916059]
[1752601729487,0.002,3097.3,3096.8,0.03229139]
[1752601729692,3.2290022,3097.0,3096.5,0.001]
[1752601729898,6.2584,3096.9,3096.5,0.1618]
[1752601730078,9.4874465,3096.9,3096.5,0.19409452]
[1752601730384,0.4484,3096.8,3096.5,0.19409452]
[1752601730585,0.4484,3096.8,3096.5,3.42354677]
[1752601730776,0.4484,3096.8,3096.5,0.19409452]
[1752601731191,0.4484,3096.7,3096.5,0.1618]
[1752601731648,3.67764921,3096.7,3096.5,0.1618]
[1752601731851,0.4484,3096.7,3096.5,0.1618]
[1752601732155,3.67774831,3096.6,3096.5,0.001]
[1752601732458,0.7544,3096.5,3094.8,0.0918]
[1752601732664,3.22995365,3096.1,3095.4,3.23056091]
[1752601732865,9.03603199,3096.0,3095.6,0.03230391]
[1752601733049,0.7544,3096.5,3095.6,0.03230391]
[1752601733246,6.5614,3096.5,3095.6,0.58950391]
[1752601733477,0.4484,3096.4,3095.6,0.03230391]
[1752601733691,0.7793,3096.3,3095.5,0.24767706]
[1752601733893,3.23036879,3095.7,3095.5,0.24767706]
[1752601734048,5.811,3095.7,3095.5,0.24767706]
[1752601734248,1.2277,3096.3,3095.5,0.24767706]
[1752601734579,3.22997185,3096.1,3095.5,0.27998201]
[1752601734890,0.4484,3096.0,3095.5,0.24767706]
[1752601735183,3.23067475,3095.4,3094.7,3.23127267]
[1752601735387,6.2614,3095.4,3094.9,3.23103241]
[1752601735749,5.811,3095.4,3095.0,3.26328397]
[1752601735961,3.230102,3095.9,3095.2,3.23080899]
[1752601736176,3.22994516,3096.1,3095.5,3.23044921]
[1752601736372,3.22994516,3096.1,3095.6,0.03230391]
[1752601736707,0.4484,3096.0,3095.6,0.03230391]
[1752601736998,0.7998,3095.8,3095.2,0.03230808]
[1752601737202,5.823,3095.9,3095.2,0.03230808]
[1752601737203,5.823,3095.9,3095.5,3.23043407]
[1752601737403,3.22927665,3096.7,3095.8,0.55]
[1752601737404,3.22927137,3096.7,3095.8,0.55]
[1752601737705,3.22920249,3096.8,3096.0,3.22997416]
[1752601737901,3.22921936,3096.8,3096.1,3.26212493]
[1752601738070,3.22934942,3096.6,3096.1,0.03229869]
[1752601738267,5.821,3096.7,3095.2,0.4644]
[1752601738468,3.22980184,3096.2,3095.6,3.23030474]
[1752601738768,3.22980184,3096.2,3095.3,0.12510704]
[1752601738769,3.22997656,3096.0,3095.7,0.03230287]
[1752601739090,1.2153,3096.1,3095.4,0.032306]
[1752601739300,0.4484,3097.1,3095.6,0.0928]
[1752601739471,0.4484,3097.0,3095.7,3.23025026]
[1752601739795,3.22910437,3096.9,3095.8,0.03230182]
[1752601739992,0.4484,3097.0,3096.5,3.22936991]
[1752601740192,0.756,3097.2,3096.6,0.03229348]
[1752601740513,3.22899429,3097.0,3096.6,0.03229348]
[1752601740720,3.22893122,3097.0,3096.6,0.23790009]
[1752601740882,3.2306281,3097.3,3096.2,0.55]
[1752601741081,3.22884288,3097.1,3096.4,3.22948504]
[1752601741288,0.002,3097.3,3096.7,3.22917299]
[1752601741516,0.002,3097.3,3096.0,0.0928]
[1752601741517,3.22890822,3097.1,3096.2,3.22975015]
[1752601741672,0.4484,3097.0,3096.3,3.22957205]
[1752601741874,3.22905498,3096.9,3096.4,0.03229556]
[1752601742069,3.22891014,3097.1,3096.1,0.03229869]
[1752601742070,3.22933109,3096.7,3096.1,0.03229869]
[1752601742295,5.827,3096.6,3096.4,3.22955473]
[1752601742618,0.1608,3096.9,3096.4,3.39034149]
[1752601742786,3.2294526,3096.5,3096.4,0.1608]
[1752601742992,3.22983933,3096.2,3096.0,0.40636255]
[1752601743204,0.1608,3096.4,3095.8,0.1608]
[1752601743411,0.4484,3096.5,3095.8,0.23808061]
[1752601743612,5.823,3096.5,3095.9,0.03230078]
[1752601743824,0.6092,3096.9,3096.4,0.1608]
[1752601744026,7.754,3097.4,3096.6,3.22928407]
[1752601744027,5.824,3096.8,3096.6,3.22928407]
[1752601744230,5.824,3096.8,3096.1,3.3225807]
[1752601744231,0.4484,3096.7,3096.1,0.0928]
[1752601744433,3.23004497,3096.0,3095.3,0.0928]
[1752601744603,3.23004497,3096.0,3094.9,1.938]
[1752601744604,3.2309706,3095.1,3094.9,0.0928]
[1752601744804,9.05279536,3095.3,3095.0,0.1608]
[1752601745005,0.7808,3095.1,3094.6,0.1608]
[1752601745234,3.23133098,3094.7,3094.6,0.1608]
[1752601745438,3.67973098,3094.7,3094.6,0.1608]
[1752601745728,0.4484,3094.7,3094.3,0.24103783]
[1752601745943,3.23162299,3094.5,3094.2,0.24746131]
[1752601746118,6.2694,3094.4,3093.4,0.0928]
[1752601746305,0.8052,3094.3,3093.5,0.03232584]
[1752601746634,0.8052,3094.3,3093.7,3.23237547]
[1752601746851,0.4484,3094.2,3093.4,0.2405288]
[1752601747196,6.2664,3094.2,3093.2,3.23281664]
[1752601747423,6.2664,3094.2,3093.3,0.03232793]
[1752601747593,6.2664,3094.2,3093.7,3.23234391]
[1752601747930,3.2310382,3095.0,3093.7,3.23234391]
[1752601747931,6.2644,3094.8,3093.9,0.0928]
[1752601748132,6.2644,3094.8,3093.4,0.4644]
[1752601748133,9.49568568,3094.8,3093.4,3.32547668]
[1752601748333,0.4484,3094.7,3093.4,0.0928]
[1752601748531,0.4484,3094.7,3093.5,0.03232584]
[1752601748698,3.23177566,3094.3,3093.5,0.03232584]
[1752601748898,3.98957326,3094.9,3093.5,0.03232584]
[1752601748899,0.7584,3094.9,3093.5,0.49672584]
[1752601749103,3.23140077,3094.7,3093.8,3.23227099]
[1752601749355,0.4484,3094.6,3093.6,3.23240366]
[1752601749644,0.4484,3094.6,3093.8,3.26459036]
[1752601749815,0.7584,3094.9,3094.1,3.23188226]
[1752601750015,3.23141267,3094.7,3094.0,3.26431431]
[1752601750216,9.50065931,3094.8,3094.0,0.03232062]
[1752601750522,6.2694,3094.8,3094.2,3.23177697]
[1752601750840,5.819,3094.7,3094.3,0.03231748]
[1752601751050,5.819,3094.7,3093.5,3.23251029]
[1752601751209,5.819,3094.7,3093.6,3.26480313]
[1752601751210,3.23182439,3094.3,3093.6,3.26480313]
[1752601751409,3.98958147,3094.9,3093.6,3.26480313]
[1752601751410,0.7584,3094.9,3093.7,1.0144]
[1752601751622,0.7584,3094.9,3094.0,3.23202711]
[1752601751623,3.23133706,3094.7,3094.0,3.23202711]
[1752601751824,3.23182355,3094.3,3093.4,0.6428]
[1752601752026,5.815,3094.2,3093.5,0.03232584]
[1752601752254,3.23206224,3094.0,3093.5,0.03232584]
[1752601752568,5.812,3094.3,3093.5,0.4644]
[1752601752718,5.812,3094.3,3093.1,0.4644]
[1752601752913,3.23186117,3094.2,3093.5,3.23251618]
[1752601753267,3.23185314,3094.2,3093.6,0.03232479]
[1752601753477,5.812,3094.3,3093.5,3.23248747]
[1752601753478,9.04382908,3094.3,3093.5,3.23248747]
[1752601753639,9.04382908,3094.3,3093.2,0.58232897]
[1752601753640,0.4484,3094.2,3093.6,0.03232479]
[1752601753963,3.23216271,3094.0,3093.3,0.03232793]
[1752601754167,3.23218797,3093.9,3093.3,0.03232793]
[1752601754939,0.4484,3094.2,3093.5,0.55]
[1752601755141,3.68026006,3094.2,3093.6,0.03232479]
[1752601755550,0.6092,3094.2,3093.7,0.1616]
[1752601755752,0.4487,3094.1,3093.7,0.1616]
[1752601756480,0.4487,3094.0,3093.2,0.03232897]
[1752601756775,0.1616,3093.8,3093.4,3.23264167]
[1752601757081,0.4487,3093.7,3093.5,3.23254523]
[1752601757625,3.23188121,3094.2,3093.4,0.03232688]
[1752601757626,0.4487,3094.2,3093.4,0.03232688]
[1752601757831,14.6860608,3095.5,3093.0,0.80585078]
[1752601757832,0.75,3094.9,3093.7,0.6428]
[1752601758071,5.9588,3094.8,3094.3,3.23170427]
[1752601758233,5.9588,3094.8,3094.2,0.03231853]
[1752601758565,0.4487,3094.7,3094.2,0.03231853]
[1752601758732,0.4487,3094.7,3094.1,0.1608]
[1752601758929,0.4487,3094.7,3094.2,0.03231853]
[1752601759372,9.19009446,3094.8,3094.1,0.1608]
[1752601759373,3.23169558,3094.4,3094.1,0.1608]
[1752601759557,0.1608,3094.5,3093.9,0.1616]
[1752601759760,3.23166249,3094.4,3093.8,0.0323227]
[1752601759978,3.2319195,3094.2,3093.8,0.1616]
[1752601760251,0.1616,3094.0,3093.4,3.42653298]
[1752601760583,0.1616,3094.0,3093.9,3.23216652]
[1752601760879,0.4487,3094.6,3093.7,0.0928]
[1752601761079,6.2317,3094.6,3093.8,0.0323227]
[1752601761372,0.7578,3094.9,3094.4,3.2315626]
[1752601761373,5.782,3094.7,3094.4,3.2315626]
[1752601761575,0.7578,3094.9,3094.4,3.2315626]
[1752601761779,0.4487,3095.7,3094.5,0.49851539]
[1752601761995,7.759,3096.4,3094.7,0.55]
[1752601762271,0.782,3096.0,3094.8,0.49851226]
[1752601762471,0.782,3096.0,3095.0,3.23101777]
[1752601762674,7.759,3096.4,3095.2,0.6428]
[1752601762675,0.7548,3096.4,3095.2,0.6428]
[1752601762895,6.5308,3096.4,3095.4,0.55]
[1752601763054,0.4487,3096.3,3095.8,3.23010237]
[1752601763253,0.4487,3096.2,3095.8,3.23008913]
[1752601763479,0.4487,3096.1,3095.7,3.26254654]
[1752601763799,0.4487,3096.0,3095.5,3.23047768]
[1752601764000,4.48299542,3095.9,3094.7,0.0323133]
[1752601764138,5.768,3095.8,3094.5,0.03231539]
[1752601764343,0.4487,3095.8,3095.1,3.2308512]
[1752601764688,0.4487,3095.8,3095.0,3.23094974]
[1752601764998,0.8206,3096.6,3095.3,0.55]
[1752601765298,3.2294526,3096.5,3095.8,3.23010692]
[1752601765470,3.22964519,3096.4,3095.9,0.03230078]
[1752601765677,0.8206,3096.6,3095.3,0.4662]
[1752601765858,0.4487,3096.5,3095.5,3.78046239]
[1752601766173,10.98975563,3097.2,3095.8,3.78018282]
[1752601766174,0.4487,3097.0,3095.8,3.78018282]
[1752601766386,0.4487,3097.0,3095.9,0.49850078]
[1752601766587,3.22920377,3096.8,3096.1,3.22978337]
[1752601766737,3.22920377,3096.8,3096.2,0.03229765]
[1752601766945,3.22906663,3096.9,3096.2,3.26201936]
[1752601767270,0.002,3097.2,3096.2,0.03229765]
[1752601767465,3.22892234,3097.1,3096.4,3.22945842]
[1752601767666,3.22889349,3097.1,3096.5,0.03229452]
[1752601767866,0.002,3097.2,3096.6,3.22928736]
[1752601768165,3.22906714,3096.9,3096.4,0.8152]
[1752601768346,0.4487,3096.8,3096.2,0.23962784]
[1752601768540,3.22934764,3096.7,3096.1,0.03229869]
[1752601768743,0.4487,3096.8,3096.1,3.26207151]
[1752601769048,0.7537,3096.9,3096.2,3.22973223]
[1752601769272,3.22920782,3096.8,3096.3,0.03229661]
[1752601769475,0.7537,3096.9,3096.3,0.03229661]
[1752601769656,0.7537,3096.9,3095.4,3.23054011]
[1752601769657,3.22954653,3096.5,3095.6,0.8152]
[1752601769860,0.4487,3096.4,3095.6,0.8152]
[1752601770074,0.4487,3096.4,3095.7,0.03230287]
[1752601770075,3.22957928,3096.4,3095.7,0.03230287]
[1752601770274,3.22952645,3096.5,3095.8,3.23009395]
[1752601770478,0.002,3096.8,3096.2,3.22969322]
[1752601770643,0.1608,3096.7,3096.3,1.97029661]
[1752601770843,0.002,3096.8,3096.3,0.49849661]
[1752601771147,0.4507,3096.8,3096.5,0.1608]
[1752601771343,0.002,3096.8,3096.5,0.1608]
[1752601771784,0.002,3096.8,3096.5,3.63517625]
[1752601771958,0.002,3096.8,3096.5,3.63514372]
[1752601772361,0.002,3096.8,3096.6,3.22929723]
[1752601772548,0.002,3096.8,3096.7,3.22924403]
[1752601772747,0.002,3096.8,3096.6,3.22928253]
[1752601772986,0.002,3096.8,3096.5,3.63515388]
[1752601773519,0.002,3096.8,3096.5,0.40573674]
[1752601773791,0.4487,3096.7,3096.5,0.40573674]
[1752601773951,0.4487,3096.7,3095.5,0.55]
[1752601773952,0.4487,3096.6,3096.3,0.1608]
[1752601774293,0.4487,3096.6,3096.1,0.1608]
[1752601774445,3.67806594,3096.6,3096.1,0.1608]
[1752601774649,0.1608,3096.7,3096.1,0.1608]
[1752601774850,0.002,3096.8,3096.2,3.26204813]
[1752601775049,0.002,3096.8,3096.3,3.39037565]
[1752601775250,0.002,3096.8,3096.4,0.03229556]
[1752601776189,0.002,3096.8,3096.4,3.26184457]
[1752601776484,0.002,3096.8,3096.4,0.03229556]
[1752601777086,3.23115431,3096.8,3096.4,0.03229556]
[1752601777314,0.4507,3096.8,3096.3,0.1608]
[1752601777775,0.4507,3096.8,3095.5,0.807]
[1752601777776,1.2095,3096.7,3095.5,0.807]
[1752601778104,3.22998048,3096.0,3095.8,0.1608]
[1752601778305,3.23007849,3095.9,3095.8,0.1608]
[1752601778524,3.23007849,3095.9,3092.7,5.63471644]
[1752601778525,0.781,3095.7,3093.8,0.4662]
[1752601778808,5.76,3095.6,3094.5,3.23153982]
[1752601778961,8.99039673,3095.6,3094.6,0.49851435]
[1752601779294,8.99039673,3095.6,3094.8,3.23116195]
[1752601779498,3.2305687,3095.5,3094.9,0.03231122]
[1752601779697,3.23101752,3095.1,3094.9,0.03231122]
[1752601779885,3.23085346,3095.2,3094.6,3.26373239]
[1752601780086,3.23099183,3095.1,3094.6,0.03231435]
[1752601780414,1.74889654,3095.5,3094.6,0.02731435]
[1752601780560,3.2306936,3095.4,3094.6,3.72494038]
[1752601780765,8.99052347,3095.5,3094.9,3.2311213]
[1752601780960,3.23091337,3095.1,3094.4,1.06442772]
[1752601781190,0.4487,3095.3,3094.4,0.24002772]
[1752601781405,0.4487,3095.3,3094.1,0.832]
[1752601781406,3.23119071,3094.9,3094.2,3.2318357]
[1752601781609,3.23127927,3094.8,3094.4,0.03231644]
[1752601781905,3.23128797,3094.8,3094.2,3.26417075]
[1752601782119,3.87738072,3094.9,3094.3,3.23173223]
[1752601782281,3.23065125,3095.4,3094.1,3.47942041]
[1752601782282,5.76,3095.3,3094.7,3.2313142]
[1752601782480,3.23085301,3095.2,3094.6,3.26365944]
[1752601782693,6.73762157,3095.3,3094.6,0.03231435]
[1752601782898,9.96838674,3095.3,3094.7,3.23130462]
[1752601783464,3.23081292,3095.2,3094.6,3.26370686]
[1752601783666,6.73762157,3095.3,3094.5,0.832]
[1752601783667,0.97762157,3095.3,3094.5,0.832]
[1752601783890,3.23101943,3095.0,3094.6,0.03231435]
[1752601784091,1.52409337,3095.2,3094.1,1.00397041]
[1752601784367,3.23131621,3094.8,3094.2,0.03231853]
[1752601784571,3.23115691,3094.9,3094.3,3.23173023]
[1752601784823,0.4496,3095.5,3094.4,0.03231644]
[1752601785101,0.4496,3095.5,3094.8,3.23115706]
[1752601785102,0.69953,3095.3,3094.8,3.23115706]
[1752601785398,0.69953,3095.3,3094.4,0.03231644]
[1752601785399,0.7857,3095.4,3095.0,3.23094321]
[1752601785563,0.4496,3095.5,3095.0,3.23094321]
[1752601785766,3.23049965,3095.5,3094.7,3.26363506]
[1752601786069,3.23071333,3095.3,3094.7,3.23132032]
[1752601786270,0.4496,3095.4,3094.8,3.23117323]
[1752601786475,0.7819,3095.8,3094.9,0.03231122]
[1752601786670,0.7819,3095.8,3094.9,0.55]
[1752601786874,0.7819,3095.8,3095.3,3.23060892]
[1752601787114,3.23049722,3095.5,3094.9,3.2311078]
[1752601787279,0.4496,3095.7,3094.8,3.23115209]
[1752601787485,0.4496,3095.7,3094.9,3.23109]
[1752601787682,0.4496,3095.7,3095.0,3.23097165]
[1752601787867,0.4496,3095.7,3094.8,0.03231226]
[1752601788074,3.23077928,3095.3,3094.6,3.23136779]
[1752601788290,0.4496,3095.2,3094.1,0.99797041]
[1752601788494,3.2314354,3094.6,3094.2,0.1608]
[1752601788709,0.1608,3094.7,3094.4,3.23161502]
[1752601788935,3.39215413,3094.7,3094.2,0.1608]
[1752601789244,3.23067874,3095.4,3094.7,3.23131904]
[1752601789557,0.1608,3095.4,3094.8,0.03231226]
[1752601789715,0.62308771,3095.4,3094.8,3.26350831]
[1752601789899,3.85375995,3095.4,3094.9,0.1608]
[1752601790231,0.4496,3095.3,3094.9,0.1608]
[1752601790431,0.6104,3095.2,3094.7,3.39212342]
[1752601790834,0.6104,3095.2,3094.8,3.23122349]
[1752601790999,0.1608,3095.2,3094.8,3.23122349]
[1752601791200,0.1608,3095.2,3094.7,3.42441434]
[1752601791427,0.1608,3095.2,3094.7,0.1931133]
[1752601791639,0.8296,3096.0,3095.0,2.7327]
[1752601791814,0.4496,3096.1,3095.3,1.938]
[1752601792009,0.4496,3096.1,3095.0,0.7947]
[1752601792355,0.1608,3095.5,3094.9,3.23110224]
[1752601792640,0.1608,3095.5,3095.0,3.23100008]
[1752601792810,3.23078155,3095.3,3094.9,0.19311122]
[1752601793013,3.23113376,3094.9,3094.5,0.1608]
[1752601793224,0.7702,3094.7,3094.1,0.24847041]
[1752601793430,0.1608,3094.6,3094.2,3.23185029]
[1752601793634,0.1608,3094.6,3094.1,3.480408]
[1752601793804,3.39226346,3094.6,3094.1,0.24847041]
[1752601794200,0.1608,3094.6,3094.1,3.48042018]
[1752601794407,0.1608,3094.6,3094.1,0.24847041]
[1752601794918,0.4496,3094.5,3094.1,0.24847041]
[1752601795228,0.4496,3094.4,3094.1,0.001]
[1752601795436,0.1608,3094.3,3094.1,0.001]
[1752601795803,3.84220491,3094.3,3094.1,0.001]
[1752601796001,3.68145314,3094.2,3094.1,0.001]
[1752601796405,0.4496,3094.2,3094.1,0.001]
[1752601797008,0.1608,3094.3,3094.1,0.001]
[1752601797412,0.6104,3094.3,3094.1,0.001]
[1752601797714,4.48435314,3094.2,3094.1,0.001]
[1752601797935,1.59058551,3094.2,3094.1,0.001]
[1752601798244,1.2525,3094.2,3094.1,0.001]
[1752601798442,0.8029,3094.2,3094.1,0.001]
[1752601798664,4.48435314,3094.2,3094.1,0.001]
[1752601801355,10.24035314,3094.2,3094.1,0.001]
[1752601801553,4.48435314,3094.2,3094.1,0.001]
[1752601801754,11.02804332,3094.2,3094.1,0.001]
[1752601802179,0.8308,3093.2,3092.1,0.786]
[1752601802350,0.1616,3092.5,3092.0,0.1626]
[1752601802683,0.1616,3092.5,3092.4,3.23373431]
[1752601802833,0.1616,3092.8,3092.1,0.4351]
[1752601803035,0.4496,3093.5,3092.6,0.1616]
[1752601803229,7.76,3094.0,3093.2,3.23279913]
[1752601803230,6.2056,3093.9,3093.2,3.23279913]
[1752601803492,30.0,3093.8,3092.3,0.7559]
[1752601803672,30.0,3093.8,3092.4,3.39527886]
[1752601803673,0.1616,3093.1,3092.4,3.39527886]
[1752601803875,0.1616,3092.8,3092.4,3.39527886]
[1752601804198,0.4496,3092.7,3092.2,0.24575242]
[1752601804405,0.7625,3092.8,3092.2,0.24575242]
[1752601804406,0.1616,3092.6,3092.2,0.24575242]
[1752601804546,0.1616,3092.6,3092.0,0.03334152]
[1752601804547,3.68328424,3092.5,3092.0,0.001]
[1752601804889,5.755,3092.4,3092.0,0.001]
[1752601805047,3.23404805,3092.1,3092.0,0.001]
[1752601805442,3.68364805,3092.1,3092.0,0.001]
[1752601806148,3.68364805,3092.1,3091.7,0.008549]
[1752601806149,0.963,3092.0,3091.7,0.008549]
[1752601806346,1.251,3092.0,3091.7,0.008549]
[1752601806659,3.23436186,3091.8,3091.7,0.008549]
[1752601807076,3.68396186,3091.8,3091.7,0.008549]
[1752601807803,37.45356186,3091.8,3091.7,0.008549]
[1752601808208,37.45356186,3091.8,3091.0,0.001]
[1752601808209,4.0046943,3091.1,3091.0,0.001]
[1752601808354,9.7606943,3091.1,3091.0,0.001]
[1752601808551,10.2102943,3091.1,3091.0,0.001]
[1752601808753,6.9752,3091.1,3091.0,0.001]
[1752601809298,10.2102943,3091.1,3091.0,0.001]
[1752601809499,11.87831218,3091.1,3091.0,0.001]
[1752601810353,14.87831218,3091.1,3091.0,0.001]
[1752601811049,0.7696,3091.1,3091.0,0.001]
[1752601811253,6.9752,3091.1,3091.0,0.001]
[1752601811557,10.2102943,3091.1,3091.0,0.001]
[1752601811752,4.4542943,3091.1,3091.0,0.001]
[1752601812078,8.45550119,3092.5,3091.0,0.001]
[1752601812079,0.4496,3092.2,3091.1,0.8026]
[1752601812278,0.7926,3092.4,3091.1,0.8026]
[1752601812279,0.7926,3092.4,3092.2,3.23384914]
[1752601812597,0.1616,3092.3,3091.9,3.23419721]
[1752601812782,0.1616,3092.3,3091.9,0.78710563]
[1752601812983,0.8132,3092.9,3092.5,3.23357971]
[1752601813186,0.1616,3092.7,3092.6,3.23352518]
[1752601813384,0.1616,3092.7,3092.1,0.1616]
[1752601813555,0.1616,3092.7,3092.6,3.23352518]
[1752601813762,9.29909,3093.9,3093.2,3.23289486]
[1752601813957,0.1616,3093.4,3093.2,3.23286084]
[1752601814188,0.1616,3093.4,3092.7,0.1939342]
[1752601814392,0.1616,3093.2,3092.9,3.2331245]
[1752601814653,0.1616,3093.2,3093.1,3.23300248]
[1752601814853,0.1616,3093.5,3092.9,0.82441261]
[1752601815162,0.1616,3093.2,3092.7,3.39500534]
[1752601815486,0.1616,3093.2,3092.8,3.2333115]
[1752601815663,0.1616,3093.2,3092.9,3.23315958]
[1752601815861,0.1616,3093.2,3092.8,3.23327655]
[1752601816195,0.4562,3093.2,3092.5,0.8017]
[1752601816398,0.1616,3093.0,3092.4,0.1616]
[1752601816581,0.1616,3093.0,3092.5,3.23360966]
[1752601816789,3.23322661,3092.9,3092.4,0.1616]
[1752601816961,3.2333351,3092.8,3092.4,0.1616]
[1752601817162,3.23321716,3092.9,3092.4,0.1616]
[1752601817501,0.1616,3092.7,3092.2,0.5975]
[1752601817659,1.1489923,3092.7,3091.8,3.23435251]
[1752601817991,0.1616,3092.3,3092.2,3.23394347]
[1752601818183,0.1616,3092.6,3092.2,0.4359]
[1752601818387,3.23279345,3093.3,3092.6,3.23352375]
[1752601818702,0.1616,3092.9,3092.6,3.23350097]
[1752601818916,0.1616,3092.9,3092.7,3.233413]
[1752601819127,0.1616,3092.9,3092.7,0.24451747]
[1752601819341,0.1616,3092.9,3092.3,0.9701]
[1752601819499,3.23370715,3092.5,3091.9,0.969]